[Event "40th Cappelle Open 2024"]
[Site "Cappelle-la-Grande"]
[Date "2024.03.04"]
[Round "4.9"]
[White "Velten, Paul"]
[Black "Bujisho, Benjamin"]
[Result "1-0"]
[ECO "B38"]
[WhiteElo "2475"]
[BlackElo "2339"]
[Annotator "ChessBase"]
[PlyCount "89"]
[EventDate "2024.03.02"]
[EventType "swiss"]
[EventCountry "FRA"]
[SourceTitle "playchess.com"]
[Source "ChessBase"]
[SourceQuality "1"]
[TimeControl "40/5400+30:1800+30"]

1. e4 {[%emt 0:05:42]} c5 {[%emt 0:03:51]} 2. Nf3 {[%emt 0:00:40]} d6 {[%emt 0:01:10]} 3. d4 {[%emt 0:00:26]} cxd4 {[%emt 0:00:08]} 4. Nxd4 {[%emt 0:00:17]} Nf6 {[%emt 0:00:13]} 5. f3 {[%emt 0:00:44]} g6 {[%emt 0:01:17]} 6. c4 {[%emt 0:01:07]} Bg7 {[%emt 0:00:49]} 7. Be3 {[%emt 0:02:05]} O-O {[%emt 0:00:52]} 8. Nc3 {[%emt 0:00:20]} Nc6 {[%emt 0:00:03]} 9. Qd2 {[%emt 0:06:40]} Nxd4 {[%emt 0:00:47]} 10. Bxd4 {[%emt 0:00:12]} Be6 {[%emt 0:01:51]} 11. Be2 {[%emt 0:03:00]} a5 {[%emt 0:03:45]} 12. b3 {[%emt 0:01:38]} Nd7 {[%emt 0:03:13]} 13. Bxg7 {[%emt 0:02:40]} Kxg7 {[%emt 0:01:06]} 14. h4 {[%emt 0:00:12]} f6 {[%emt 0:08:13]} 15. f4 {[%emt 0:01:05]} Qb6 {[%emt 0:08:12]} 16. g4 {[%emt 0:02:41]} Bg8 {[%emt 0:24:05]} 17. g5 {[%emt 0:01:10]} e5 {[%emt 0:10:39]} 18. f5 {[%emt 0:06:50]} Qd4 {[%emt 0:00:45]} 19. O-O-O {[%emt 0:00:20]} fxg5 {[%emt 0:07:58]} 20. hxg5 {[%emt 0:01:15]} Qxd2+ {[%emt 0:01:23]} 21. Rxd2 {[%emt 0:00:06]} gxf5 {[%emt 0:00:11]} 22. exf5 {[%emt 0:05:14]} Rxf5 {[%emt 0:01:05]} 23. Bg4 {[%emt 0:00:09]} Rf7 {[%emt 0:00:33]} 24. Bxd7 {[%emt 0:01:19]} Rxd7 {[%emt 0:00:09]} 25. Ne4 {[%emt 0:00:14]} b5 {[%emt 0:07:04]} 26. Nxd6 {[%emt 0:01:40]} Kg6 {[%emt 0:03:47]} 27. Rf1 {[%emt 0:03:58]} Rc7 {[%emt 0:02:44]} 28. Rf6+ {[%emt 0:00:27]} Kg7 {[%emt 0:01:18]} 29. Nxb5 {[%emt 0:00:08]} Rf7 {[%emt 0:01:08]} 30. Rdf2 {[%emt 0:01:12]} Rxf6 {[%emt 0:00:40]} 31. gxf6+ {[%emt 0:00:44]} Kg6 {[%emt 0:00:18]} 32. Nd6 {[%emt 0:01:36]} Be6 {[%emt 0:01:49]} 33. f7 {[%emt 0:00:16]} Rf8 {[%emt 0:00:03]} 34. c5 {[%emt 0:00:05]} h5 {[%emt 0:00:12]} 35. c6 {[%emt 0:00:11]} h4 {[%emt 0:00:04]} 36. c7 {[%emt 0:00:16]} h3 {[%emt 0:00:04]} 37. Kd2 {[%emt 0:00:17]} Kg5 {[%emt 0:00:34]} 38. Ke3 {[%emt 0:00:12]} Kg4 {[%emt 0:00:17]} 39. a3 {[%emt 0:00:58]} Kg3 {[%emt 0:00:39]} 40. Ne4+ {[%emt 0:00:11]} Kg4 {[%emt 0:00:48]} 41. b4 {[%emt 0:30:32]} axb4 {[%emt 0:30:05]} 42. axb4 {[%emt 0:00:05]} h2 {[%emt 0:00:37]} 43. Rxh2 {[%emt 0:00:10]} Rxf7 {[%emt 0:00:01]} 44. Rg2+ {[%emt 0:00:13]} Kh4 {[%emt 0:00:10]} 45. Rc2 {[%emt 0:00:29]} 1-0

[Event "40th Cappelle Open 2024"]
[Site "Cappelle-la-Grande"]
[Date "2024.03.04"]
[Round "4.10"]
[White "Roshka, Yevgeniy"]
[Black "Ringuet, Noe"]
[Result "1/2-1/2"]
[ECO "E60"]
[WhiteElo "2468"]
[BlackElo "2184"]
[Annotator "RC"]
[PlyCount "108"]
[EventDate "2024.03.02"]
[EventType "swiss"]
[EventCountry "FRA"]
[SourceTitle "playchess.com"]
[Source "ChessBase"]
[SourceQuality "1"]
[TimeControl "40/5400+30:1800+30"]

1. d4 {[%emt 0:02:48]} d6 {[%emt 0:00:14]} 2. Nf3 {[%emt 0:01:03]} g6 {[%emt 0:01:08]} 3. c4 {[%emt 0:00:50]} Nf6 {[%emt 0:03:06]} 4. b3 {[%emt 0:02:49]} Nbd7 {[%emt 0:01:56]} 5. Bb2 {[%emt 0:00:05]} e5 {[%emt 0:01:02]} 6. Nc3 {[%emt 0:04:51]} e4 {[%emt 0:06:02]} 7. Nd2 {[%emt 0:10:41]} e3 {[%emt 0:01:07]} 8. fxe3 {[%emt 0:00:03]} Bh6 {[%emt 0:05:36]} 9. Nf3 {[%emt 0:00:27]} Bxe3 {[%emt 0:12:46]} 10. Qd3 {[%emt 0:21:46]} Qe7 {[%emt 0:03:28]} 11. Nb5 {[%emt 0:09:20]} Kd8 {[%emt 0:07:08]} 12. c5 {[%emt 0:05:56]} d5 {[%emt 0:13:39]} 13. Bc1 {[%emt 0:03:22]} Bxc1 {[%emt 0:05:32]} 14. Rxc1 {[%emt 0:00:05]} Ne4 {[%emt 0:04:08]} 15. Nc3 {[%emt 0:06:24]} Ndf6 {[%emt 0:11:02]} 16. Nd2 {[%emt 0:01:12]} Re8 {[%emt 0:11:02]} 17. Ndxe4 {[%emt 0:00:29]} Nxe4 {[%emt 0:00:47]} 18. Nxe4 {[%emt 0:02:08]} Qxe4 {[%emt 0:03:05]} 19. Qxe4 {[%emt 0:00:54]} Rxe4 {[%emt 0:00:05]} 20. Rd1 {[%emt 0:00:03]} Bf5 {[%emt 0:01:24]} 21. Kf2 {[%emt 0:02:13]} Kd7 {[%emt 0:00:38]} 22. e3 {[%emt 0:00:06]} Rae8 {[%emt 0:01:25]} 23. Rd3 {[%emt 0:00:05]} R4e6 {[%emt 0:00:49]} 24. Rc3 {[%emt 0:00:08]} Be4 {[%emt 0:00:19]} 25. Be2 {[%emt 0:01:20]} h5 {[%emt 0:02:35]} 26. Rhc1 {[%emt 0:00:56]} h4 {[%emt 0:01:03]} 27. b4 {[%emt 0:00:45]} c6 {[%emt 0:00:23]} 28. b5 {[%emt 0:00:13]} Kc7 {[%emt 0:02:03]} 29. Ra3 {[%emt 0:00:16]} cxb5 {[%emt 0:00:27]} 30. Bxb5 {[%emt 0:01:03]} Ra8 {[%emt 0:00:03]} 31. Rb3 {[%emt 0:02:31]} Rh8 {[%emt 0:00:53]} 32. Be2 {[%emt 0:01:34]} Rhe8 {[%emt 0:00:58]} 33. a4 {[%emt 0:00:09]} f5 {[%emt 0:00:30]} 34. a5 {[%emt 0:00:08]} g5 {[%emt 0:00:32]} 35. a6 {[%emt 0:01:40]} bxa6 {[%emt 0:00:23]} 36. Ra1 {[%emt 0:01:02]} Rb8 {[%emt 0:00:35]} 37. Rxb8 {[%emt 0:00:20]} Kxb8 {[%emt 0:00:03]} 38. Bxa6 {[%emt 0:02:03]} f4 {[%emt 0:00:10]} 39. exf4 {[%emt 0:00:10]} gxf4 {[%emt 0:00:04]} 40. Ra3 {[%emt 0:02:32]} Rg6 {[%emt 0:01:44]} 41. Bf1 {[%emt 0:31:15]} Kb7 {[%emt 0:02:17]} 42. Rb3+ {[%emt 0:00:00]} Kc7 {[%emt 0:02:44]} 43. Rh3 {[%emt 0:00:00]} Rg4 {[%emt 0:03:43]} 44. Ra3 {[%emt 0:00:00]} Kb7 {[%emt 0:00:39]} 45. c6+ {[%emt 0:00:00]} Kxc6 {[%emt 0:01:27]} 46. Rxa7 {[%emt 0:00:00]} h3 {[%emt 0:07:59]} 47. gxh3 {[%emt 0:00:00]} Rh4 {[%emt 0:00:04]} 48. Rg7 {[%emt 0:00:00]} Bf5 {[%emt 0:00:40]} 49. Rf7 {[%emt 0:00:00]} Bxh3 {[%emt 0:01:18]} 50. Rf6+ {[%emt 0:00:00]} Kd7 {[%emt 0:01:41]} 51. Bxh3+ {[%emt 0:00:00]} Rxh3 {[%emt 0:00:05]} 52. Kg2 {[%emt 0:00:00]} Rh4 {[%emt 0:00:28]} 53. Kf3 {[%emt 0:00:00]} Rxh2 {[%emt 0:01:04]} 54. Kxf4 {[%emt 0:00:00]} Re2 {[%emt 0:00:39]} 1/2-1/2

[Event "40th Cappelle Open 2024"]
[Site "Cappelle-la-Grande"]
[Date "2024.03.04"]
[Round "4.11"]
[White "Defromont, Benjamin"]
[Black "Wirig, Anthony"]
[Result "1/2-1/2"]
[ECO "B45"]
[WhiteElo "2401"]
[BlackElo "2462"]
[Annotator "RC"]
[PlyCount "82"]
[EventDate "2024.03.02"]
[EventType "swiss"]
[EventCountry "FRA"]
[SourceTitle "playchess.com"]
[Source "ChessBase"]
[SourceQuality "1"]
[TimeControl "40/5400+30:1800+30"]

1. e4 {[%emt 0:00:04]} c5 {[%emt 0:04:49]} 2. Nf3 {[%emt 0:00:04]} e6 {[%emt 0:00:03]} 3. d4 {[%emt 0:00:14]} cxd4 {[%emt 0:00:06]} 4. Nxd4 {[%emt 0:00:05]} Nf6 {[%emt 0:00:05]} 5. Nc3 {[%emt 0:00:24]} Nc6 {[%emt 0:00:05]} 6. Nxc6 {[%emt 0:00:55]} bxc6 {[%emt 0:00:05]} 7. e5 {[%emt 0:00:08]} Nd5 {[%emt 0:00:14]} 8. Ne4 {[%emt 0:00:08]} Qc7 {[%emt 0:00:39]} 9. f4 {[%emt 0:00:19]} Qb6 {[%emt 0:00:20]} 10. c4 {[%emt 0:00:23]} Bb4+ {[%emt 0:00:18]} 11. Ke2 {[%emt 0:00:09]} f5 {[%emt 0:01:06]} 12. exf6 {[%emt 0:00:41]} Nxf6 {[%emt 0:00:12]} 13. Be3 {[%emt 0:00:18]} Qd8 {[%emt 0:00:24]} 14. Nd6+ {[%emt 0:00:41]} Bxd6 {[%emt 0:00:06]} 15. Qxd6 {[%emt 0:00:05]} Bb7 {[%emt 0:11:28]} 16. Rd1 {[%emt 0:00:57]} Rc8 {[%emt 0:01:06]} 17. Rg1 {[%emt 0:00:32]} c5 {[%emt 0:00:27]} 18. g4 {[%emt 0:00:22]} Ne4 {[%emt 0:00:48]} 19. Qe5 {[%emt 0:05:26]} Qe7 {[%emt 0:00:17]} 20. Bg2 {[%emt 0:06:03]} d6 {[%emt 0:08:31]} 21. Qh5+ {[%emt 0:00:18]} g6 {[%emt 0:04:50]} 22. Qh6 {[%emt 0:01:11]} Rf8 {[%emt 0:13:21]} 23. Rd3 {[%emt 0:16:36]} Nf6 {[%emt 0:09:57]} 24. Bxb7 {[%emt 0:12:09]} Qxb7 {[%emt 0:00:13]} 25. Rxd6 {[%emt 0:00:18]} Qxb2+ {[%emt 0:01:23]} 26. Kf3 {[%emt 0:12:07]} Qb7+ {[%emt 0:02:35]} 27. Ke2 {[%emt 0:00:12]} Qe4 {[%emt 0:16:18]} 28. Qg7 {[%emt 0:06:10]} Qxc4+ {[%emt 0:05:35]} 29. Kf3 {[%emt 0:00:22]} Qe4+ {[%emt 0:03:14]} 30. Ke2 {[%emt 0:01:10]} Rf7 {[%emt 0:09:07]} 31. Qh8+ {[%emt 0:00:39]} Rf8 {[%emt 0:00:05]} 32. Qg7 {[%emt 0:00:08]} Rb8 {[%emt 0:01:43]} 33. Rgd1 {[%emt 0:13:51]} Rb2+ {[%emt 0:00:32]} 34. R1d2 {[%emt 0:00:43]} Qg2+ {[%emt 0:02:19]} 35. Kd3 {[%emt 0:02:08]} Qe4+ {[%emt 0:04:40]} 36. Ke2 {[%emt 0:00:12]} Qg2+ {[%emt 0:00:26]} 37. Kd3 {[%emt 0:00:06]} Qf1+ {[%emt 0:00:49]} 38. Kc3 {[%emt 0:00:30]} Qc1+ {[%emt 0:00:09]} 39. Kd3 {[%emt 0:00:07]} Qf1+ {[%emt 0:00:52]} 40. Kc3 {[%emt 0:00:14]} Qc1+ {[%emt 0:00:24]} 41. Kd3 {[%emt 0:30:54]} Qf1+ {[%emt 0:12:50]} 1/2-1/2

[Event "40th Cappelle Open 2024"]
[Site "Cappelle-la-Grande"]
[Date "2024.03.04"]
[Round "4.12"]
[White "Degraeve, Jean-Marc"]
[Black "Degardin, Sylvain"]
[Result "1/2-1/2"]
[ECO "B22"]
[WhiteElo "2455"]
[BlackElo "2235"]
[Annotator "TA"]
[PlyCount "98"]
[EventDate "2024.03.02"]
[EventType "swiss"]
[EventCountry "FRA"]
[SourceTitle "playchess.com"]
[Source "ChessBase"]
[SourceQuality "1"]
[TimeControl "40/5400+30:1800+30"]

{[%evp 19,98,14,24,10,10,0,0,0,0,9,17,0,24,21,21,19,20,0,8,0,4,6,7,4,9,7,10,0,0,0,0,0,0,0,0,0,0,0,0,0,0,0,0,0,0,0,0,0,0,0,0,0,0,0,0,0,0,0,0,0,0,0,0,0,0,0,0,0,0,0,0,0,0,0,0,0,0,0,0,0,0]} 1. e4 {[%emt 0:00:07]} c5 {[%emt 0:00:43]} 2. c3 {[%emt 0:00:30]} Nf6 {[%emt 0:00:22]} 3. e5 {[%emt 0:00:11]} Nd5 {[%emt 0:00:17]} 4. Nf3 {[%emt 0:00:23]} Nc6 {[%emt 0:00:44]} 5. d4 {[%emt 0:00:29]} cxd4 {[%emt 0:00:38]} 6. cxd4 {[%emt 0:00:08]} d6 {[%emt 0:00:23]} 7. Bc4 {[%emt 0:00:19]} e6 {[%emt 0:00:25]} 8. O-O {[%emt 0:00:23]} Be7 {[%emt 0:00:20]} 9. Qe2 {[%emt 0:00:08]} O-O {[%emt 0:00:16]} 10. Rd1 {[%emt 0:00:08]} Na5 {[%emt 0:01:05]} 11. Bd3 {[%emt 0:00:54]} Nb4 {[%emt 0:01:04]} 12. Nc3 {[%emt 0:00:23]} Nxd3 {[%emt 0:04:16]} 13. Rxd3 {[%emt 0:00:29]} d5 {[%emt 0:23:18]} 14. Ne1 {[%emt 0:05:15]} f6 {[%emt 0:05:09]} (14... f5 {keeps more tension.} 15. Rg3 Bd7 16. Qh5 Qe8) 15. Bf4 {[%emt 0:04:15]} Nc6 {[%emt 0:03:38]} 16. exf6 {[%emt 0:02:13]} Bxf6 {[%emt 0:03:09] The position is equal.} 17. Nf3 {[%emt 0:01:25]} Bd7 {[%emt 0:04:44]} 18. Ne5 {[%emt 0:05:24]} Nxe5 {[%emt 0:03:36]} 19. Bxe5 {[%emt 0:00:08]} Bxe5 {[%emt 0:00:22]} 20. Qxe5 {[%emt 0:00:07]} Qf6 {[%emt 0:03:58]} 21. Qe3 {[%emt 0:00:59] Active counter play!} (21. Qxf6 {simplifies} Rxf6 22. f3 Rff8 23. Rdd1) 21... Rac8 {[%emt 0:02:59]} 22. Rc1 {[%emt 0:07:13]} Rc4 {[%emt 0:08:05]} (22... Qf4 {simplifies} 23. Qxf4 Rxf4 24. f3 Rff8) 23. Rdd1 {[%emt 0:01:17]} Qf4 {[%emt 0:02:57]} 24. b3 {[%emt 0:17:58]} Qxe3 {[%emt 0:03:34]} 25. fxe3 {[%emt 0:00:04]} Rc7 {[%emt 0:00:49]} 26. Ne2 {[%emt 0:02:03]} Rfc8 {[%emt 0:03:12]} 27. Rxc7 {[%emt 0:00:08]} Rxc7 {[%emt 0:00:05]} 28. Rc1 {[%emt 0:00:05] Wards off Rc2} Rxc1+ {[%emt 0:03:32]} 29. Nxc1 $11 {[%emt 0:00:09][%mdl 4096] Endgame. KB-KN} Bb5 {[%emt 0:01:30]} 30. a4 {[%emt 0:00:09]} Ba6 {[%emt 0:00:23]} 31. a5 {[%emt 0:00:55]} Kf7 {[%emt 0:02:11]} 32. Na2 {[%emt 0:00:05]} Kf6 {[%emt 0:06:34]} 33. Nc3 {[%emt 0:00:12]} Kf5 {[%emt 0:01:36]} 34. Kf2 {[%emt 0:00:22]} g5 {[%emt 0:00:42]} 35. Kg3 {[%emt 0:04:39]} Bd3 {[%emt 0:01:20]} 36. h4 {[%emt 0:00:11]} h6 {[%emt 0:00:26]} 37. hxg5 {[%emt 0:00:08]} hxg5 {[%emt 0:00:06]} 38. Kf3 {[%emt 0:00:17]} Be4+ {[%emt 0:05:51]} 39. Kf2 {[%emt 0:03:41]} Bd3 {[%emt 0:00:30] Dodges Nb5} 40. b4 {[%emt 0:00:25]} Bc4 {[%emt 0:04:47]} 41. Kf3 {[%emt 0:31:02]} Bd3 {[%emt 0:07:22]} 42. Na4 {[%emt 0:00:00]} Bb5 {[%emt 0:01:54]} 43. Nc3 {[%emt 0:00:00]} Bd3 {[%emt 0:00:41]} 44. g4+ {[%emt 0:00:00]} Kf6 {[%emt 0:00:16]} 45. e4 {[%emt 0:00:00]} Bc4 {[%emt 0:03:54]} 46. Ke3 {[%emt 0:00:00]} Ke7 {[%emt 0:02:44]} 47. Nd1 {[%emt 0:00:00]} Kf6 {[%emt 0:01:57]} 48. Nc3 {[%emt 0:00:00]} Ke7 {[%emt 0:00:15]} 49. Nb1 {[%emt 0:00:00]} Bb3 {[%emt 0:05:02] An even fight not without its subleties.   Weighted Error Value: White=0.03 (flawless) /Black=0.02 (flawless) .  OK:         	White=19    	Black=16     Best:        	---       	Black=1} 1/2-1/2

[Event "40th Cappelle Open 2024"]
[Site "Cappelle-la-Grande"]
[Date "2024.03.04"]
[Round "4.13"]
[White "Nikolov, Momchil"]
[Black "Lacan Rus, David"]
[Result "1/2-1/2"]
[ECO "B33"]
[WhiteElo "2453"]
[BlackElo "2169"]
[Annotator "TA"]
[PlyCount "31"]
[EventDate "2024.03.02"]
[EventType "swiss"]
[EventCountry "FRA"]
[SourceTitle "playchess.com"]
[Source "ChessBase"]
[SourceQuality "1"]
[TimeControl "40/5400+30:1800+30"]

{[%evp 16,31,52,0,20,0,62,40,43,-6,-10,-14,-23,-24,-16,-18,8,-46]} 1. e4 {[%emt 0:03:17]} c5 {[%emt 0:00:20]} 2. Nf3 {[%emt 0:00:14]} Nc6 {[%emt 0:00:14]} 3. d4 {[%emt 0:00:20]} cxd4 {[%emt 0:00:16]} 4. Nxd4 {[%emt 0:00:07]} Nf6 {[%emt 0:00:39]} 5. Nc3 {[%emt 0:00:18]} e5 {[%emt 0:00:06]} 6. Ndb5 {[%emt 0:00:58]} d6 {[%emt 0:00:12]} 7. Bg5 {[%emt 0:02:11]} a6 {[%emt 0:00:15]} 8. Na3 {[%emt 0:01:24]} b5 {[%emt 0:00:13][%cal Bb7b5,Bb5b4][%mdl 32]} 9. Nab1 {[%emt 0:02:00]} ({White should try} 9. Bxf6 $14 gxf6 10. Nd5) 9... Be6 {[%emt 0:02:37]} 10. a4 {[%emt 0:01:32]} Nd4 {[%emt 0:01:31]} ({Black should play} 10... Qa5 $11 11. Bxf6 gxf6) 11. Bd3 $14 {[%emt 0:09:15]} b4 {[%emt 0:05:14] White is slightly better.} 12. Ne2 {[%emt 0:02:44]} (12. Bxf6 $14 {deserves consideration.} Qxf6 13. Nd5 Bxd5 14. exd5) 12... Nc6 $11 {[%emt 0:07:32]} 13. O-O {[%emt 0:01:44]} Be7 {[%emt 0:02:08]} 14. Nd2 {[%emt 0:01:32]} d5 {[%emt 0:07:42]} 15. Ng3 {[%emt 0:05:57]} O-O {[%emt 0:07:18]} 16. Re1 {[%emt 0:12:07] Weighted Error Value: White=0.19 (very precise) /Black=0.17 (very precise) .  Mistake:       	White=2     	Black=1      OK:         	White=1     	Black=4} (16. Nf3 $11) 1/2-1/2

[Event "40th Cappelle Open 2024"]
[Site "Cappelle-la-Grande"]
[Date "2024.03.04"]
[Round "4.14"]
[White "Fiedorek, Michal"]
[Black "Enchev, Ivajlo"]
[Result "1/2-1/2"]
[ECO "C45"]
[WhiteElo "2286"]
[BlackElo "2425"]
[Annotator "TA"]
[PlyCount "96"]
[EventDate "2024.03.02"]
[EventType "swiss"]
[EventCountry "FRA"]
[SourceTitle "playchess.com"]
[Source "ChessBase"]
[SourceQuality "1"]
[TimeControl "40/5400+30:1800+30"]

{[%evp 12,96,12,6,35,36,17,10,43,17,52,0,0,0,0,0,-5,-25,-31,-32,-9,-13,-22,-38,-30,-30,-25,-26,-15,-2,0,0,0,-14,0,0,0,0,0,8,0,0,0,-25,-12,-8,-20,-22,-5,-16,-9,-43,-44,-41,-33,-40,-42,-41,-38,-42,-45,-60,-23,-20,0,-30,0,-16,0,0,0,0,0,0,0,0,0,0,0,0,0,0,0,0,0,0,4]} 1. e4 {[%emt 0:00:04]} e5 {[%emt 0:04:12]} 2. Nf3 {[%emt 0:00:05]} Nc6 {[%emt 0:00:13]} 3. d4 {[%emt 0:00:04]} exd4 {[%emt 0:00:14]} 4. Nxd4 {[%emt 0:00:07]} Bc5 {[%emt 0:00:22]} 5. Nb3 {[%emt 0:00:32]} Bb6 {[%emt 0:00:41]} 6. Nc3 {[%emt 0:01:13]} d6 {[%emt 0:02:32]} 7. Qe2 {[%emt 0:02:12]} Nf6 {[%emt 0:03:13]} 8. Bg5 {[%emt 0:01:09]} h6 {[%emt 0:00:22]} 9. Bh4 {[%emt 0:02:00]} Nd4 {[%emt 0:13:15]} 10. Qd3 {[%emt 0:02:11]} Nxb3 {[%emt 0:05:36]} 11. cxb3 {[%emt 0:07:45]} (11. axb3 $14 Be6 12. Be2) 11... Qe7 $11 {[%emt 0:04:33]} 12. O-O-O {[%emt 0:05:17]} Be6 {[%emt 0:02:23]} 13. Be2 {[%emt 0:06:01]} O-O-O {[%emt 0:02:18]} 14. Rhe1 {[%emt 0:04:08]} g5 {[%emt 0:03:43]} 15. Bg3 {[%emt 0:00:13]} Nd7 {[%emt 0:01:05]} 16. Qc2 {[%emt 0:02:11][%cal Og3d6] [#] Bxd6! would now be deadly.} Kb8 {[%emt 0:04:17]} 17. Bc4 {[%emt 0:16:03]} h5 {[%emt 0:03:47]} 18. f3 {[%emt 0:03:51]} h4 {[%emt 0:01:01]} 19. Bf2 {[%emt 0:00:32]} h3 {[%emt 0:01:56]} 20. g3 {[%emt 0:01:56]} Ne5 {[%emt 0:01:10]} (20... Bxf2 {is more complex.} 21. Qxf2 Ne5 22. Nb5 c5) 21. Bxb6 {[%emt 0:01:55]} axb6 {[%emt 0:00:25]} 22. Be2 {[%emt 0:00:28]} c6 {[%emt 0:06:34]} 23. Qd2 {[%emt 0:02:37]} f5 {[%emt 0:05:44]} 24. Qe3 {[%emt 0:09:27]} Kc7 {[%emt 0:05:22]} 25. f4 {[%emt 0:11:37]} gxf4 {[%emt 0:02:07]} 26. gxf4 {[%emt 0:00:04]} Ng6 {[%emt 0:03:16]} 27. exf5 {[%emt 0:04:50]} Bxf5 {[%emt 0:00:21]} 28. Qxe7+ {[%emt 0:00:07]} Nxe7 {[%emt 0:00:04]} 29. Bd3 {[%emt 0:00:10]} Rde8 {[%emt 0:00:38]} 30. Re3 {[%emt 0:01:02]} (30. Rxe7+ Rxe7 31. Bxf5 Rf7) 30... d5 {[%emt 0:06:06] [#] Strongly threatening ...d4.} 31. Rde1 {[%emt 0:03:38] Black must now prevent Bxf5.} (31. Rxe7+ $5 Rxe7 32. Bxf5 $11) 31... Bxd3 {[%emt 0:00:05]} 32. Rxd3 {[%emt 0:00:06]} Rh7 {[%emt 0:01:22]} 33. Ree3 {[%emt 0:05:52]} Reh8 {[%emt 0:00:55][%cal Od5d4] aiming for ...d4!} 34. Ne2 {[%emt 0:00:44]} Nf5 {[%emt 0:00:34]} 35. Re5 {[%emt 0:02:57]} Rf7 {[%emt 0:00:39]} 36. Ng1 {[%emt 0:00:35]} Nd6 {[%emt 0:07:09]} 37. Rxh3 {[%emt 0:02:10]} Ra8 {[%emt 0:00:46]} 38. a3 {[%emt 0:00:46]} Ne4 {[%emt 0:00:17]} 39. Nf3 {[%emt 0:02:28] The position is equal.} Rxf4 {[%emt 0:03:35]} 40. Re7+ {[%emt 0:00:21]} Kd6 {[%emt 0:00:30]} 41. Rxb7 {[%emt 0:30:58]} Raf8 {[%emt 0:31:37]} 42. Nd2 {[%emt 0:00:00]} Nxd2 {[%emt 0:00:00]} 43. Kxd2 {[%emt 0:00:00][%mdl 4096] Endgame. KRR-KRR} Rf2+ {[%emt 0:00:00]} 44. Kc3 {[%emt 0:00:00]} R8f3+ {[%emt 0:00:00]} 45. Rxf3 {[%emt 0:00:00]} Rxf3+ {[%emt 0:00:00]} 46. Kc2 {[%emt 0:00:00]} Rf2+ {[%emt 0:00:00]} 47. Kc3 {[%emt 0:00:00]} Rf3+ {[%emt 0:00:00]} 48. Kc2 {[%emt 0:00:00]} Ke5 {[%emt 0:09:31] Weighted Error Value: White=0.08 (flawless) /Black=0.07 (flawless) .  Mistake:       	White=1     	---        Inaccurate:     	White=3     	Black=3      OK:         	White=19    	Black=17     Best:        	White=3     	Black=1} 1/2-1/2

[Event "40th Cappelle Open 2024"]
[Site "Cappelle-la-Grande"]
[Date "2024.03.04"]
[Round "4.15"]
[White "Fedoryshyn, Ievgenii"]
[Black "Eugene, Floryan"]
[Result "1-0"]
[ECO "C45"]
[WhiteElo "2256"]
[BlackElo "2422"]
[Annotator "TA"]
[PlyCount "71"]
[EventDate "2024.03.02"]
[EventType "swiss"]
[EventCountry "FRA"]
[SourceTitle "playchess.com"]
[Source "ChessBase"]
[SourceQuality "1"]
[TimeControl "40/5400+30:1800+30"]

{[%evp 17,71,-29,-14,-3,-10,-17,-14,-7,-2,-15,-23,-26,0,-54,0,-44,-23,-17,-10,-10,-16,-39,247,256,264,250,272,240,362,362,352,367,382,383,375,366,543,533,539,528,602,466,445,433,440,435,501,424,466,468,560,523,507,506,630,617]} 1. e4 {[%emt 0:00:03]} e5 {[%emt 0:06:12]} 2. Nf3 {[%emt 0:00:05]} Nc6 {[%emt 0:00:03]} 3. d4 {[%emt 0:00:19]} exd4 {[%emt 0:00:13]} 4. Nxd4 {[%emt 0:00:05]} Nf6 {[%emt 0:00:08]} 5. Nxc6 {[%emt 0:00:25]} bxc6 {[%emt 0:00:08]} 6. e5 {[%emt 0:00:05]} Qe7 {[%emt 0:00:10]} 7. Qe2 {[%emt 0:00:08]} Nd5 {[%emt 0:00:05]} 8. c4 {[%emt 0:00:05]} Ba6 {[%emt 0:00:41]} 9. b3 {[%emt 0:01:07]} g6 $1 {[%emt 0:00:46]} 10. Ba3 {[%emt 0:00:43]} Nb4 {[%emt 0:03:16] With the idea ...d5.} 11. Bb2 $1 {[%emt 0:00:07][%cal Oe5e6]} Bg7 {[%emt 0:04:15]} 12. a3 {[%emt 0:00:05] The position is equal.} Nd5 {[%emt 0:00:16][%cal Bb4d5,Bd5b6,Bb6a4,Ba4c3][%mdl 32]} 13. Nd2 {[%emt 0:00:09]} O-O {[%emt 0:03:56]} 14. O-O-O {[%emt 0:00:03]} Rfe8 {[%emt 0:00:29]} 15. Re1 {[%emt 0:00:28]} (15. Qf3 $11 Nb6 16. Re1) 15... Rab8 {[%emt 0:07:30]} ({Black should try} 15... Nb6 $15) 16. h4 {[%emt 0:01:51]} Nb6 {[%emt 0:03:12]} 17. h5 {[%emt 0:00:09]} d5 {[%emt 0:00:18]} 18. hxg6 {[%emt 0:00:18]} hxg6 {[%emt 0:00:55][%cal Oa6c4]} 19. Qf3 {[%emt 0:00:27] [#]} Bxc4 $2 {[%emt 0:13:31][%mdl 8192] A mistake that costs the game.} 20. bxc4 $18 {[%emt 0:04:12]} Na4 {[%emt 0:00:21] [#]} 21. Bd4 {[%emt 0:07:42]} Red8 {[%emt 0:04:58] [#]} 22. Qe3 $1 {[%emt 0:06:21] And now c5 would win.} (22. Bxa7 Rb7 23. Bd4 dxc4 $15) 22... c5 {[%emt 0:17:31]} (22... dxc4 $142 23. Nxc4 (23. Bxc4 $2 Rxd4 24. e6 f5 $19) 23... Qd7) 23. Ba1 {[%emt 0:00:12]} d4 {[%emt 0:00:10]} 24. Qh3 {[%emt 0:00:55]} Rb6 {[%emt 0:00:25]} 25. Bd3 {[%emt 0:03:35]} Nc3 {[%emt 0:00:51]} 26. e6 {[%emt 0:06:03]} fxe6 {[%emt 0:01:30]} (26... Rxe6 {was worth a try.} 27. Rxe6 Qxe6 28. Qxe6 fxe6 29. Bxg6 (29. Bxc3 dxc3 30. Kc2 cxd2 $15) 29... Ne2+ 30. Kd1 Nc3+ 31. Kc2 (31. Bxc3 $2 dxc3 32. Rh3 Rxd2+ 33. Kc1 Re2 $19) 31... Na4 32. Bh7+ Kf7) 27. Qh7+ {[%emt 0:06:01] White is clearly winning.} Kf8 {[%emt 0:00:01]} 28. Rh3 {[%emt 0:00:59] Rf3+ is the strong threat.} e5 {[%emt 0:01:18]} 29. Rf3+ {[%emt 0:00:40]} Rf6 {[%emt 0:00:06]} 30. Rxf6+ {[%emt 0:03:07]} Qxf6 {[%emt 0:01:33]} 31. Qxg6 {[%emt 0:00:23]} ({Weaker is} 31. Bxg6 Rd6 32. Bd3 (32. Bxc3 dxc3 33. Ne4 Qxg6 $14) (32. Bf5 Qg5 $18) 32... Bh6 $18) (31. Bxc3 $2 dxc3 32. Qh3 (32. Ne4 $2 Qb6 $19) 32... cxd2+ 33. Kxd2 Qxf2+ 34. Re2 Qd4 35. Qf3+ Ke7 $19) 31... Qb6 {[%emt 0:06:01]} 32. Qxb6 {[%emt 0:02:21]} cxb6 {[%emt 0:00:22][%cal Bc7b6,Bb6b5,Bb5b4][%mdl 32]} 33. Kc2 {[%emt 0:00:31]} ({Not} 33. Bxc3 dxc3 34. Ne4 Rxd3 $16) 33... b5 {[%emt 0:01:11]} 34. Bxc3 {[%emt 0:00:43]} dxc3 {[%emt 0:00:02]} 35. Ne4 {[%emt 0:00:11]} b4 {[%emt 0:00:05]} 36. Nxc5 {[%emt 0:00:16] Weighted Error Value: White=0.21 (precise) /Black=0.61.  Loses game:     	---       	Black=1      Mistake:       	White=1     	Black=3      Inaccurate:     	White=1     	Black=1      OK:         	White=14    	Black=6      Best:        	White=2     	Black=2      Strong:       	White=2     	---} 1-0